fUSD/lending_fUSD_20250228
["ID","MTS","AMOUNT","RATE_DAILY","PERIOD"]
[354794050,1740707457082,-616.35,0.00040513,2]
[354794051,1740707457091,-156.0,0.00041,14]
[354794052,1740707457100,-750.0,0.00041,2]
[354794053,1740707457109,-200.25579523,0.00041007,9]
[354794054,1740707457118,-150.06,0.00041096,2]
[354794055,1740707457127,-1500.0,0.00041096,120]
[354794056,1740707457136,-164.66055884,0.00041096,2]
[354794057,1740707457145,-450.88,0.00041288,30]
[354794058,1740707457156,-153.94,0.00041288,30]
[354794059,1740707457165,-156.0,0.0004137,90]
[354794060,1740707457174,-158.45,0.00041534,2]
[354794061,1740707457184,-579.0,0.00042,2]
[354794062,1740707457193,-150.0,0.0004211,30]
[354794063,1740707457203,-150.0,0.0004211,30]
[354794064,1740707457212,-745.21,0.000422,7]
[354794065,1740707457224,-200.25579523,0.00042329,9]
[354794066,1740707457234,-616.35,0.00042777,2]
[354794067,1740707457244,-1734.76216026,0.00043,120]
[354794068,1740707457253,-800.0,0.00043,2]
[354794069,1740707457262,-156.0,0.00043151,90]
[354794070,1740707457271,-285.01332008,0.00043562,120]
[354794072,1740707457281,-200.25579523,0.0004365,9]
[354794073,1740707457290,-1394.8505635,0.000439,30]
[354794074,1740707457299,-210.12,0.00044239,2]
[354794075,1740707457308,-621.01,0.000443,14]
[354794076,1740707457318,-515.751643,0.000449,61]
[354794077,1740707457327,-200.25579523,0.00044971,10]
[354794078,1740707457337,-117728.23095283,0.00045,90]
[354794079,1740707457346,-151.0,0.00045,120]
[354794080,1740707457356,-111669.53618085,0.00045,120]
[354794081,1740707457365,-151.0,0.00045,14]
[354794082,1740707457374,-151.0,0.00045,14]
[354794083,1740707457384,-189.356203,0.00045,14]
[354794084,1740707457394,-151.0,0.00045,14]
[354794085,1740707457403,-151.0,0.00045,14]
[354794086,1740707457412,-153.552817,0.00045,14]
[354794087,1740707457421,-154.61891703,0.00045,120]
[354794088,1740707457431,-151.0,0.00045,14]
[354794089,1740707457440,-151.0,0.00045,14]
[354794090,1740707457449,-151.0,0.00045,14]
[354794091,1740707457458,-151.0,0.00045,14]
[354794092,1740707457467,-151.0,0.00045,14]
[354794093,1740707457479,-228.260668,0.00045,14]
[354794094,1740707457491,-151.0,0.00045,14]
[354794095,1740707457503,-151.0,0.00045,14]
[354794096,1740707457512,-616.35,0.00045041,2]
[354794097,1740707457521,-1124.8541037,0.00045257,17]
[354794098,1740707457533,-158.0,0.00045308,90]
[354794099,1740707457542,-167.89,0.00045824,120]
[354794100,1740707457552,-2168.45270032,0.00046,120]
[354794101,1740707457561,-558.65,0.00046,39]
[354794102,1740707457570,-558.65,0.00046,39]
[354794103,1740707457579,-558.65,0.00046,39]
[354794104,1740707457589,-558.65,0.00046,39]
[354794105,1740707457599,-558.65,0.00046,39]
[354794106,1740707457607,-558.65,0.00046,39]
[354794107,1740707457617,-558.65,0.00046,39]
[354794108,1740707457627,-558.65,0.00046,39]
[354794109,1740707457636,-558.65,0.00046,39]
[354794110,1740707457646,-558.65,0.00046,39]
[354794111,1740707457657,-558.65,0.00046,39]
[354794112,1740707457666,-558.65,0.00046,39]
[354794113,1740707457675,-169.50055781,0.00046164,30]
[354794114,1740707457687,-200.25579523,0.00046293,10]
[354794115,1740707457696,-2827.0,0.000466,2]
[354794116,1740707457706,-169.50055781,0.00046795,30]
[354794117,1740707457715,-160.11995488,0.00047,2]
[354794118,1740707457728,-616.35,0.00047305,2]
[354794119,1740707457737,-169.50055781,0.00047397,30]
[354794120,1740707457747,-4905.77463476,0.000476,2]
[354794121,1740707457757,-200.25579523,0.00047614,11]
[354794122,1740707457766,-2168.45270031,0.00048,120]
[354794123,1740707457776,-500.0,0.00048,120]
[354794125,1740707457785,-169.50055781,0.00048027,30]
[354794126,1740707457794,-12499.999999,0.00048456,31]
[354794127,1740707457804,-169.50055781,0.0004863,30]
[354794128,1740707457813,-1185.0,0.00048794,3]
[354794129,1740707457823,-4642.9259273,0.000488,120]
[354794130,1740707457833,-619.74708984,0.000488,120]
[354794131,1740707457842,-1769.29900943,0.000488,120]
[354794132,1740707457852,-158.45,0.00048877,2]
[354794133,1740707457862,-1143.0,0.00048878,120]
[354794134,1740707457871,-1143.0,0.00048878,120]
[354794135,1740707457881,-200.25579523,0.00048936,11]
[354794136,1740707457891,-669.21555428,0.00049,4]
[354794137,1740707457900,-3471.34303969,0.00049,5]
[354794138,1740707457910,-151.0,0.00049068,120]
[354794139,1740707457920,-150.0,0.00049182,120]
[354794140,1740707457930,-150.58011848,0.0004923,14]
[354794141,1740707457940,-2827.78731229,0.000493,2]
[354794142,1740707457950,-636.15190065,0.00049315,120]
[354794143,1740707457960,-500.0,0.00049315,120]
[354794144,1740707457970,-189.48,0.00049315,2]
[354794145,1740707457985,-154.243017,0.00049315,120]
[354794146,1740707458000,-500.0,0.000495,120]
[354794147,1740707458010,-616.35,0.00049569,2]
[354794149,1740707458020,-500.0,0.00049589,120]
[354794150,1740707458031,-11062.04,0.000497,40]
[354794151,1740707458040,-156.043298,0.000497,120]
[354794153,1740707458050,-1000.0,0.000498,120]
[354794154,1740707458060,-156.0,0.00049839,120]
[354794155,1740707458070,-500.0,0.00049863,120]
[354794156,1740707458079,-1143.0,0.00049878,120]
[354794157,1740707458089,-1143.0,0.00049878,120]
[354794158,1740707458101,-1143.0,0.00049878,120]
[354794159,1740707458253,-1143.0,0.00049878,120]
[354794160,1740707458264,-1143.0,0.00049878,120]
[354794161,1740707458274,-1143.0,0.00049878,120]
[354794162,1740707458284,-1143.0,0.00049878,120]
[354794163,1740707458293,-1143.0,0.00049878,120]
[354794164,1740707458303,-1143.0,0.00049878,120]
[354794165,1740707458313,-1143.0,0.00049878,120]
[354794166,1740707458322,-1143.0,0.00049878,120]
[354794168,1740707458331,-1143.0,0.00049878,120]
[354794169,1740707458341,-1143.0,0.00049878,120]
[354794170,1740707458350,-1143.0,0.00049878,120]
[354794171,1740707458360,-1143.0,0.00049878,120]
[354794172,1740707458369,-1143.0,0.00049878,120]
[354794173,1740707458379,-1143.0,0.00049878,120]
[354794174,1740707458389,-1143.0,0.00049878,120]
[354794175,1740707458400,-151.0,0.00049878,120]
[354794176,1740707458410,-151.0,0.00049878,120]
[354794177,1740707458419,-151.0,0.00049878,120]
[354794178,1740707458429,-151.0,0.00049878,120]
[354794179,1740707458438,-11943.23266586,0.00049905,120]
[354794180,1740707458447,-6000.0,0.00049945,120]
[354794181,1740707458456,-228.5,0.0004995,30]
[354794182,1740707458466,-577.82193378,0.00049959,2]
[354794183,1740707458476,-150.5,0.0004996,30]
[354794184,1740707458490,-278866.7709605,0.0004996,2]
[354794185,1740707458499,-151.0,0.0004996,120]
[354794186,1740707458508,-209.955696,0.0004996,120]
[354794187,1740707458517,-151.0,0.0004996,120]
[354794188,1740707458527,-7932.6592714,0.00049966,2]
[354794189,1740707458536,-6386.499127,0.00049966,2]
[354794190,1740707458545,-15437.3531938,0.00049966,2]
[354794191,1740707458554,-13983.3902749,0.00049966,2]
[354794192,1740707458564,-5638.64612329,0.0005,61]
[354794193,1740707458574,-350.0,0.0005,120]
[354794194,1740707458583,-1000000.0,0.0005,120]
[354794195,1740707458592,-1000000.0,0.0005,120]
[354794196,1740707458602,-1000000.0,0.0005,120]
[354794198,1740707458612,-1195749.0,0.0005,120]
[354794199,1740707458621,-7000.0,0.0005,120]
[354794200,1740707458631,-1800000.0,0.0005,120]
[354794201,1740707458640,-241.78840426,0.0005,2]
[354794202,1740707458649,-175.23411806,0.0005,30]
[354794203,1740707458659,-161.19226951,0.0005,2]
[354794204,1740707458669,-6193.0,0.0005,15]
[354794205,1740707458678,-151.0,0.0005,120]
[354794206,1740707458687,-150.0,0.0005,120]
[354794207,1740707458697,-151.89,0.0005,120]
[354794208,1740707458706,-151.89,0.0005,120]
[354794209,1740707458715,-8005.0,0.0005,120]
[354794210,1740707458726,-151.0,0.0005,120]
[354794211,1740707458735,-210.12,0.00050036,2]
[354794212,1740707458744,-500.0,0.00050136,120]
[354794213,1740707458753,-200.25579523,0.00050257,11]
[354794214,1740707458763,-5550.0,0.000504,120]
[354794215,1740707458772,-558.65,0.000504,48]
[354794216,1740707458780,-558.65,0.000504,48]
[354794217,1740707458789,-558.65,0.000504,48]
[354794218,1740707458799,-558.65,0.000504,48]
[354794219,1740707458808,-558.65,0.000504,48]
[354794220,1740707458817,-558.65,0.000504,48]
[354794222,1740707458826,-558.65,0.000504,48]
[354794223,1740707458836,-558.65,0.000504,48]
[354794224,1740707458845,-558.65,0.000504,48]
[354794226,1740707458854,-558.65,0.000504,48]
[354794227,1740707458863,-558.65,0.000504,48]
[354794228,1740707458872,-558.65,0.000504,48]
[354794229,1740707458881,-558.65,0.000504,48]
[354794230,1740707458890,-558.65,0.000504,48]
[354794231,1740707458899,-558.65,0.000504,48]
[354794232,1740707458908,-558.65,0.000504,48]
[354794233,1740707458917,-558.65,0.000504,48]
[354794234,1740707458927,-558.65,0.000504,48]
[354794235,1740707458936,-558.65,0.000504,48]
[354794236,1740707458945,-558.65,0.000504,48]
[354794237,1740707458954,-558.65,0.000504,48]
[354794238,1740707458963,-558.65,0.000504,48]
[354794239,1740707458972,-558.65,0.000504,48]
[354794240,1740707458982,-558.65,0.000504,48]
[354794241,1740707458991,-500.0,0.0005041,120]
[354794242,1740707459000,-500.0,0.00050684,120]
[354794243,1740707459010,-500.0,0.00050794,120]
[354794244,1740707459019,-5550.0,0.000508,120]
[354794245,1740707459028,-150.0,0.00050883,120]
[354794246,1740707459037,-2757.18270414,0.000509,120]
[354794247,1740707459046,-2757.18270414,0.000509,120]
[354794248,1740707459056,-2757.18270414,0.000509,120]
[354794249,1740707459065,-2757.18270414,0.000509,120]
[354794250,1740707459074,-2757.18270414,0.000509,120]
[354794251,1740707459083,-2757.18270414,0.000509,120]
[354794252,1740707459092,-2757.18270414,0.000509,120]
[354794253,1740707459101,-2757.18270414,0.000509,120]
[354794254,1740707459110,-500.0,0.00050958,120]
[354794255,1740707459120,-1000000.0,0.00051,120]
[354794256,1740707459129,-1000000.0,0.00051,120]
[354794257,1740707459139,-1000000.0,0.00051,120]
[354794258,1740707459148,-1000000.0,0.00051,120]
[354794259,1740707459157,-198.6902617,0.00051,120]
[354794260,1740707459166,-1771.53443066,0.00051,120]
[354794261,1740707459175,-500.0,0.00051232,120]
[354794262,1740707459184,-6000.0,0.00051315,120]
[354794263,1740707459194,-1124.8541037,0.00051329,23]
[354794264,1740707459203,-500.0,0.00051506,120]
[354794265,1740707459213,-200.25579523,0.00051579,12]
[354794266,1740707459223,-500.0,0.0005178,120]
[354794267,1740707459234,-156.0,0.00051781,120]
[354794268,1740707459244,-30806.2078784,0.000518,120]
[354794269,1740707459253,-616.35,0.00051833,2]
[354794270,1740707459262,-515.751643,0.000519,88]
[354794271,1740707459271,-500.0,0.000519,22]
[354794272,1740707459281,-500.0,0.000519,22]
[354794273,1740707459290,-500.0,0.000519,22]
[354794274,1740707459299,-500.0,0.000519,22]
[354794275,1740707459309,-500.0,0.000519,22]
[354794276,1740707459318,-500.0,0.000519,22]
[354794277,1740707459327,-500.0,0.000519,22]
[354794278,1740707459337,-500.0,0.000519,22]
[354794279,1740707459346,-500.0,0.000519,22]
[354794280,1740707459355,-500.0,0.000519,22]
[354794281,1740707459364,-500.0,0.000519,42]
[354794282,1740707459373,-153.20012773,0.000519,2]
[354794283,1740707459382,-288.53444139,0.000519,2]
[354794284,1740707459392,-6095.5156891,0.000519,2]
[354794285,1740707459401,-177.29,0.00051918,2]
[354794286,1740707459410,-4840.3389825,0.00051964,2]
[354794287,1740707459419,-12529.427356,0.00051964,2]
[354794288,1740707459428,-10000.0,0.00051998,120]
[354794289,1740707459438,-100000.0,0.00052,52]
[354794290,1740707459448,-1000000.0,0.00052,120]
[354794291,1740707459457,-1000000.0,0.00052,120]
[354794292,1740707459467,-23144.27672328,0.00052,30]
[354794293,1740707459477,-500.0,0.00052054,120]
[354794294,1740707459487,-1062.69833895,0.00052169,30]
[354794295,1740707459500,-323.92274594,0.00052328,120]
[354794296,1740707459510,-200.0,0.00052333,2]
[354794297,1740707459523,-200.0,0.00052333,2]
[354794298,1740707459532,-202.0,0.00052333,2]
[354794299,1740707459542,-200.0,0.00052333,2]
[354794300,1740707459552,-200.0,0.00052333,2]
[354794301,1740707459561,-200.0,0.00052333,2]
[354794302,1740707459573,-200.0,0.00052333,2]
[354794303,1740707459583,-200.0,0.00052333,2]
[354794304,1740707459591,-262.0,0.00052333,2]
[354794305,1740707459602,-200.0,0.00052333,2]
[354794306,1740707459612,-200.0,0.00052333,2]
[354794307,1740707459622,-200.0,0.00052333,2]
[354794308,1740707459631,-200.0,0.00052333,2]
[354794309,1740707459640,-166.0,0.00052333,2]
[354794310,1740707459651,-4093.33,0.00052334,120]
[354794311,1740707459660,-3294.1788381,0.00052464,2]
[354794312,1740707459670,-11075.4644371,0.00052464,2]
[354794313,1740707459679,-1000000.0,0.000525,120]
[354794314,1740707459688,-1000000.0,0.000525,120]
[354794315,1740707459698,-1000000.0,0.000525,120]
[354794316,1740707459707,-1000000.0,0.000525,120]
[354794317,1740707459716,-6000.0,0.00052684,120]
[354794318,1740707459726,-410.38959839,0.0005283,120]
[354794319,1740707459735,-167.89,0.00052861,120]
[354794320,1740707459745,-200.25579523,0.000529,12]
[354794321,1740707459754,-100000.0,0.00053,53]
[354794322,1740707459764,-1000000.0,0.00053,120]
[354794323,1740707459773,-472.9,0.00053,120]
[354794324,1740707459782,-1000000.0,0.00053,120]
[354794325,1740707459792,-384.46007264,0.00053,2]
[354794326,1740707459801,-1000000.0,0.00053,120]
[354794327,1740707459810,-1000000.0,0.00053,120]
[354794328,1740707459819,-324.75351596,0.00053,30]
[354794329,1740707459828,-151.0,0.00053151,120]
[354794330,1740707459837,-4417.9865392,0.00053334,120]
[354794331,1740707459846,-150.0,0.00053424,120]
[354794332,1740707459855,-1748.0186936,0.00053463,2]
[354794333,1740707459864,-9621.5015183,0.00053463,2]
[354794334,1740707459873,-8765.99143182,0.000535,120]
[354794335,1740707459883,-1000000.0,0.000535,120]
[354794336,1740707459891,-203.0,0.0005355,30]
[354794337,1740707459900,-999.99,0.00053989,10]
[354794338,1740707459909,-1053.29,0.00053989,2]
[354794339,1740707459918,-6279.96,0.00053989,2]
[354794340,1740707459927,-299.99,0.00053989,120]
[354794341,1740707459936,-5050.0,0.0005399,33]
[354794342,1740707459945,-100000.0,0.00054,54]
[354794343,1740707459954,-252.2469785,0.00054,30]
[354794344,1740707459963,-1000000.0,0.00054,120]
[354794345,1740707459973,-1000000.0,0.00054,120]
[354794346,1740707459981,-2000.0,0.00054,90]
[354794347,1740707459990,-1000000.0,0.00054,120]
[354794348,1740707459999,-459.03554637,0.00054,30]
[354794349,1740707460008,-6000.0,0.00054054,120]
[354794350,1740707460018,-616.35,0.00054096,2]
[354794351,1740707460028,-2110.0,0.00054164,30]
[354794352,1740707460038,-156.0,0.0005437,120]
[354794353,1740707460048,-2000.0,0.00054391,3]
[354794354,1740707460059,-862.6925,0.00054391,3]
[354794355,1740707460068,-2000.0,0.00054391,3]
[354794356,1740707460079,-2497.0,0.00054478,85]
[354794357,1740707460088,-1121193.37,0.000545,120]
[354794358,1740707460098,-206.0,0.0005459,30]
[354794359,1740707460107,-2000.0,0.00054664,120]
[354794360,1740707460116,-500.0,0.00054664,120]
[354794361,1740707460126,-202.770399,0.00054664,120]
[354794362,1740707460136,-2110.0,0.00054664,30]
[354794363,1740707460146,-590.85816444,0.0005467,7]
[354794364,1740707460155,-1010.69729894,0.0005467,7]
[354794365,1740707460164,-10994.7435,0.00054692,120]
[354794366,1740707460174,-203.02580934,0.000547,120]
[354794367,1740707460184,-151.0,0.00054712,120]
[354794368,1740707460195,-100000.0,0.00054794,54]
[354794369,1740707460205,-500.0,0.00054794,120]
[354794371,1740707460331,-500.0,0.00054794,120]
[354794372,1740707460341,-154.618068,0.00054794,120]
[354794373,1740707460351,-4105.716146,0.00054794,120]
[354794374,1740707460360,-1424.950955,0.00054794,120]
[354794375,1740707460369,-159.164146,0.00054794,120]
[354794376,1740707460379,-155.071749,0.00054794,120]
[354794377,1740707460389,-500.0,0.00054794,120]
[354794378,1740707460399,-503.39468143,0.00054794,120]
[354794379,1740707460408,-503.49415427,0.00054794,120]
[354794380,1740707460418,-501.27072039,0.00054794,120]
[354794381,1740707460428,-500.0,0.00054794,120]
[354794382,1740707460437,-208.19398546,0.00054794,120]
[354794383,1740707460447,-502.41242957,0.00054794,120]
[354794384,1740707460457,-500.0,0.00054794,120]
[354794385,1740707460467,-503.49232291,0.00054794,120]
[354794386,1740707460481,-502.16975161,0.00054794,120]
[354794387,1740707460491,-502.6599596,0.00054794,2]
[354794388,1740707460505,-500.0,0.00054794,120]
[354794389,1740707460515,-500.75982628,0.00054794,120]
[354794390,1740707460524,-501.84301749,0.00054794,120]
[354794391,1740707460535,-502.05669364,0.00054794,120]
[354794392,1740707460544,-503.696867,0.00054794,120]
[354794393,1740707460554,-500.0,0.00054794,2]
[354794394,1740707460564,-505.39407403,0.00054794,120]
[354794395,1740707460575,-647.65976438,0.00054794,120]
[354794396,1740707460584,-500.0,0.00054794,2]
[354794397,1740707460594,-162.03505872,0.00054794,120]
[354794398,1740707460603,-515.93321603,0.00054794,120]
[354794399,1740707460613,-506.20729758,0.00054794,120]
[354794400,1740707460622,-500.0,0.00054794,120]
[354794401,1740707460631,-503.46083973,0.00054794,120]
[354794402,1740707460641,-303.40834119,0.00054794,120]
[354794403,1740707460650,-265.34815814,0.00054794,120]
[354794404,1740707460660,-503.85318926,0.00054794,120]
[354794405,1740707460669,-505.96847403,0.00054794,120]
[354794406,1740707460678,-503.50319196,0.00054794,120]
[354794407,1740707460687,-500.0,0.00054794,16]
[354794408,1740707460697,-507.60013369,0.00054794,120]
[354794409,1740707460706,-502.11570823,0.00054794,120]
[354794410,1740707460715,-505.96136808,0.00054794,120]
[354794411,1740707460727,-503.65758882,0.00054794,120]
[354794412,1740707460739,-507.91323897,0.00054794,120]
[354794413,1740707460748,-501.29233268,0.00054794,120]
[354794414,1740707460757,-502.04177713,0.00054794,120]
[354794415,1740707460766,-521.84365872,0.00054794,120]
[354794416,1740707460775,-507.39014233,0.00054794,120]
[354794417,1740707460784,-503.20713157,0.00054794,120]
[354794418,1740707460794,-509.82776632,0.00054794,120]
[354794419,1740707460803,-500.0,0.00054794,120]
[354794420,1740707460812,-500.0,0.00054794,2]
[354794421,1740707460821,-505.25210997,0.00054794,120]
[354794422,1740707460830,-290.61757042,0.00054794,120]
[354794423,1740707460839,-504.2439111,0.00054794,120]
[354794424,1740707460848,-500.0,0.00054794,120]
[354794425,1740707460858,-507.25922097,0.00054794,120]
[354794426,1740707460867,-504.67649285,0.00054794,120]
[354794427,1740707460876,-506.15029986,0.00054794,120]
[354794428,1740707460885,-500.0,0.00054794,120]
[354794429,1740707460894,-502.92337449,0.00054794,120]
[354794430,1740707460904,-517.93256301,0.00054794,120]
[354794431,1740707460914,-500.0,0.00054794,120]
[354794432,1740707460924,-500.0,0.00054794,120]
[354794433,1740707460933,-503.55947073,0.00054794,120]
[354794434,1740707460942,-503.78709378,0.00054794,120]
[354794435,1740707460951,-500.0,0.00054794,120]
[354794436,1740707460963,-500.0,0.00054794,120]
[354794437,1740707460972,-501.82672053,0.00054794,120]
[354794438,1740707460985,-500.0,0.00054794,120]
[354794439,1740707460994,-503.79429529,0.00054794,120]
[354794440,1740707461004,-500.0,0.00054794,120]
[354794441,1740707461013,-500.0,0.00054794,120]
[354794442,1740707461022,-500.0,0.00054794,120]
[354794443,1740707461031,-504.17331077,0.00054794,120]
[354794444,1740707461040,-500.0,0.00054794,120]
[354794445,1740707461049,-500.0,0.00054794,120]
[354794446,1740707461058,-501.65982537,0.00054794,120]
[354794447,1740707461067,-506.09199861,0.00054794,120]
[354794448,1740707461076,-506.66588604,0.00054794,120]
[354794449,1740707461085,-500.0,0.00054794,120]
[354794450,1740707461093,-500.0,0.00054794,120]
[354794451,1740707461103,-500.0,0.00054794,120]
[354794452,1740707461112,-500.0,0.00054794,120]
[354794453,1740707461121,-500.0,0.00054794,120]
[354794454,1740707461130,-500.0,0.00054794,120]
[354794455,1740707461139,-506.70461388,0.00054794,120]
[354794456,1740707461148,-500.0,0.00054794,120]
[354794457,1740707461157,-500.0,0.00054794,120]
[354794458,1740707461167,-500.0,0.00054794,120]
[354794459,1740707461177,-503.59613649,0.00054794,120]
[354794460,1740707461187,-500.56879343,0.00054794,120]
[354794461,1740707461197,-500.0,0.00054794,120]
[354794462,1740707461208,-500.0,0.00054794,120]
[354794463,1740707461217,-485.71295147,0.00054794,120]
[354794464,1740707461226,-500.0,0.00054794,120]
[354794465,1740707461235,-500.0,0.00054794,120]
[354794466,1740707461244,-500.0,0.00054794,120]
[354794467,1740707461254,-500.0,0.00054794,120]
[354794468,1740707461263,-500.0,0.00054794,120]
[354794469,1740707461271,-500.0,0.00054794,120]
[354794470,1740707461280,-500.0,0.00054794,120]
[354794471,1740707461290,-500.0,0.00054794,120]
[354794472,1740707461299,-500.0,0.00054794,120]
[354794473,1740707461308,-500.0,0.00054794,120]
[354794474,1740707461319,-504.43153985,0.00054794,120]
[354794475,1740707461328,-500.0,0.00054794,120]
[354794476,1740707461338,-500.0,0.00054794,120]
[354794477,1740707461347,-500.0,0.00054794,120]
[354794478,1740707461357,-500.0,0.00054794,120]
[354794479,1740707461366,-500.0,0.00054794,120]
[354794480,1740707461375,-500.0,0.00054794,120]
[354794481,1740707461385,-500.0,0.00054794,120]
[354794482,1740707461394,-500.0,0.00054794,120]
[354794483,1740707461403,-500.0,0.00054794,120]
[354794484,1740707461412,-500.0,0.00054794,120]
[354794485,1740707461422,-500.0,0.00054794,120]
[354794486,1740707461431,-500.0,0.00054794,120]
[354794487,1740707461441,-500.0,0.00054794,120]
[354794488,1740707461451,-500.0,0.00054794,120]
[354794489,1740707461460,-500.0,0.00054794,120]
[354794490,1740707461469,-500.0,0.00054794,120]
[354794491,1740707461481,-500.0,0.00054794,120]
[354794492,1740707461494,-500.0,0.00054794,120]
[354794493,1740707461504,-500.0,0.00054794,120]
[354794494,1740707461513,-500.0,0.00054794,120]
[354794495,1740707461523,-500.0,0.00054794,120]
[354794496,1740707461532,-500.0,0.00054794,120]
[354794497,1740707461541,-503.62446798,0.00054794,120]
[354794498,1740707461551,-500.0,0.00054794,120]
[354794499,1740707461560,-500.0,0.00054794,120]
[354794500,1740707461571,-538.68652838,0.00054794,120]
[354794501,1740707461581,-500.0,0.00054794,120]
[354794502,1740707461590,-500.0,0.00054794,120]
[354794503,1740707461599,-500.0,0.00054794,120]
[354794504,1740707461608,-500.0,0.00054794,120]
[354794505,1740707461617,-500.0,0.00054794,120]
[354794506,1740707461626,-500.0,0.00054794,120]
[354794507,1740707461635,-500.0,0.00054794,120]
[354794508,1740707461644,-500.0,0.00054794,120]
[354794509,1740707461653,-500.0,0.00054794,120]
[354794510,1740707461663,-500.0,0.00054794,120]
[354794511,1740707461672,-500.0,0.00054794,120]
[354794512,1740707461681,-500.67602644,0.00054794,120]
[354794513,1740707461690,-503.92147902,0.00054794,120]
[354794514,1740707461699,-267.87389046,0.00054794,120]
[354794515,1740707461708,-500.0,0.00054794,120]
[354794516,1740707461717,-500.0,0.00054794,120]
[354794517,1740707461728,-504.95171649,0.00054794,120]
[354794518,1740707461737,-513.40392409,0.00054794,120]
[354794519,1740707461746,-500.0,0.00054794,120]
[354794520,1740707461754,-500.0,0.00054794,120]
[354794521,1740707461763,-500.0,0.00054794,120]
[354794522,1740707461772,-500.0,0.00054794,120]
[354794523,1740707461783,-500.0,0.00054794,120]
[354794524,1740707461792,-500.0,0.00054794,120]
[354794525,1740707461802,-500.0,0.00054794,120]
[354794526,1740707461811,-500.0,0.00054794,120]
[354794527,1740707461820,-500.0,0.00054794,120]
[354794528,1740707461829,-500.0,0.00054794,120]
[354794529,1740707461838,-500.0,0.00054794,120]
[354794530,1740707461848,-500.0,0.00054794,120]
[354794531,1740707461857,-500.0,0.00054794,120]
[354794532,1740707461866,-500.0,0.00054794,120]
[354794533,1740707461875,-500.0,0.00054794,120]
[354794534,1740707461884,-500.0,0.00054794,120]
[354794535,1740707461893,-500.0,0.00054794,120]
[354794536,1740707461902,-502.10786223,0.00054794,30]
[354794537,1740707461912,-557.22936464,0.00054794,120]
[354794538,1740707461921,-500.0,0.00054794,120]
[354794539,1740707461930,-500.0,0.00054794,120]
[354794540,1740707461939,-500.0,0.00054794,120]
[354794541,1740707461948,-500.0,0.00054794,120]
[354794542,1740707461957,-500.0,0.00054794,120]
[354794543,1740707461966,-500.0,0.00054794,120]
[354794544,1740707461975,-500.0,0.00054794,120]
[354794545,1740707461986,-500.0,0.00054794,120]
[354794546,1740707461995,-500.0,0.00054794,120]
[354794547,1740707462003,-500.0,0.00054794,120]
[354794548,1740707462012,-500.0,0.00054794,120]
[354794549,1740707462022,-504.04263558,0.00054794,120]
[354794550,1740707462031,-500.0,0.00054794,120]
[354794551,1740707462040,-501.74576414,0.00054794,120]
[354794552,1740707462049,-500.0,0.00054794,120]
[354794553,1740707462058,-514.84448182,0.00054794,120]
[354794554,1740707462067,-500.0,0.00054794,120]
[354794555,1740707462076,-500.0,0.00054794,120]
[354794556,1740707462086,-500.0,0.00054794,120]
[354794557,1740707462095,-503.635078,0.00054794,120]
[354794558,1740707462105,-500.0,0.00054794,120]